[Event "Titled Tuesday Blitz June 14 Early 2022"]
[White "Babazada, Khazar"]
[Black "Yang, Kaiqi"]
[WhiteFideId "13413554"]
[BlackFideId "8604398"]
[WhiteElo "2406"]
[BlackElo "2373"]
[Result "0-1"]
[Round "03"]
[TimeControl "180+1"]
[Date "2022.06.14"]
[WhiteClock "0:00:07"]
[BlackClock "0:00:11"]

1. e4 {[%clk 0:03:00]}  c5 {[%clk 0:02:59]} 2. Nf3 {[%clk 0:03:01]}  e6 {[%clk 0:02:59]} 3. d4 {[%clk 0:03:01]}  cxd4 {[%clk 0:03:00]} 4. Nxd4 {[%clk 0:03:02]}  a6 {[%clk 0:03:00]} 5. Nd2 {[%clk 0:02:32]}  Nc6 {[%clk 0:02:57]} 6. N2f3 {[%clk 0:02:32]}  Qc7 {[%clk 0:02:49]} 7. c3 {[%clk 0:02:30]}  d6 {[%clk 0:02:42]} 8. Be2 {[%clk 0:02:28]}  Nf6 {[%clk 0:02:41]} 9. Qc2 {[%clk 0:02:08]}  Be7 {[%clk 0:02:41]} 10. O-O {[%clk 0:02:07]}  O-O {[%clk 0:02:41]} 11. h3 {[%clk 0:02:06]}  e5 {[%clk 0:02:37]} 12. Nxc6 {[%clk 0:01:43]}  bxc6 {[%clk 0:02:38]} 13. Rd1 {[%clk 0:01:36]}  d5 {[%clk 0:02:37]} 14. Nd2 {[%clk 0:01:26]}  Be6 {[%clk 0:02:34]} 15. Bd3 {[%clk 0:01:26]}  h6 {[%clk 0:02:32]} 16. Nf1 {[%clk 0:01:22]}  Rfd8 {[%clk 0:02:27]} 17. Ng3 {[%clk 0:01:18]}  a5 {[%clk 0:02:15]} 18. Qe2 {[%clk 0:01:16]}  Rd7 {[%clk 0:02:06]} 19. Bc2 {[%clk 0:01:14]}  Bf8 {[%clk 0:02:04]} 20. Rf1 {[%clk 0:01:03]}  Re8 {[%clk 0:01:55]} 21. f4 {[%clk 0:01:03]}  dxe4 {[%clk 0:01:51]} 22. f5 {[%clk 0:00:51]}  Bd5 {[%clk 0:01:40]} 23. c4 {[%clk 0:00:51]}  Red8 {[%clk 0:01:25]} 24. cxd5 {[%clk 0:00:50]}  cxd5 {[%clk 0:01:25]} 25. Bb3 {[%clk 0:00:50]}  Qb7 {[%clk 0:01:19]} 26. Nh5 {[%clk 0:00:49]}  Be7 {[%clk 0:01:07]} 27. g4 {[%clk 0:00:36]}  Nxh5 {[%clk 0:01:05]} 28. gxh5 {[%clk 0:00:37]}  Bf6 {[%clk 0:01:04]} 29. Qg4 {[%clk 0:00:34]}  Kh7 {[%clk 0:01:04]} 30. Re1 {[%clk 0:00:21]}  a4 {[%clk 0:01:05]} 31. Bc2 {[%clk 0:00:18]}  Rc8 {[%clk 0:01:01]} 32. Qg2 {[%clk 0:00:19]}  Rdc7 {[%clk 0:00:59]} 33. Re2 {[%clk 0:00:19]}  Rc4 {[%clk 0:00:54]} 34. b3 {[%clk 0:00:17]}  Rc3 {[%clk 0:00:38]} 35. Kh2 {[%clk 0:00:13]}  Qc6 {[%clk 0:00:34]} 36. Bxe4 {[%clk 0:00:13]}  dxe4 {[%clk 0:00:31]} 37. Be3 {[%clk 0:00:14]}  axb3 {[%clk 0:00:29]} 38. axb3 {[%clk 0:00:15]}  Rxb3 {[%clk 0:00:29]} 39. Rc1 {[%clk 0:00:14]}  Rc3 {[%clk 0:00:29]} 40. Rxc3 {[%clk 0:00:12]}  Qxc3 {[%clk 0:00:30]} 41. Qxe4 {[%clk 0:00:13]}  Rd8 {[%clk 0:00:23]} 42. Bf2 {[%clk 0:00:10]}  Rd1 {[%clk 0:00:21]} 43. Qg2 {[%clk 0:00:10]}  Qd3 {[%clk 0:00:20]} 44. Re3 {[%clk 0:00:09]}  Qxf5 {[%clk 0:00:20]} 45. Rf3 {[%clk 0:00:07]}  Qxh5 {[%clk 0:00:19]} 46. Rg3 {[%clk 0:00:07]}  e4 {[%clk 0:00:18]} 47. Qxe4+ {[%clk 0:00:08]}  g6 {[%clk 0:00:17]} 48. Qc4 {[%clk 0:00:08]}  Qd5 {[%clk 0:00:15]} 49. Qxd5 {[%clk 0:00:04]}  Rxd5 {[%clk 0:00:16]} 50. Rf3 {[%clk 0:00:05]}  Be5+ {[%clk 0:00:16]} 51. Kg2 {[%clk 0:00:05]}  f5 {[%clk 0:00:17]} 52. Rb3 {[%clk 0:00:06]}  g5 {[%clk 0:00:16]} 53. Rb7+ {[%clk 0:00:07]}  Kg6 {[%clk 0:00:16]} 54. Rb6+ {[%clk 0:00:07]}  Rd6 {[%clk 0:00:16]} 55. Rb5 {[%clk 0:00:08]}  Bf6 {[%clk 0:00:16]} 56. h4 {[%clk 0:00:08]}  g4 {[%clk 0:00:16]} 57. h5+ {[%clk 0:00:09]}  Kxh5 {[%clk 0:00:16]} 58. Rxf5+ {[%clk 0:00:09]}  Kg6 {[%clk 0:00:17]} 59. Rb5 {[%clk 0:00:10]}  h5 {[%clk 0:00:17]} 60. Kg3 {[%clk 0:00:11]}  Re6 {[%clk 0:00:16]} 61. Kf4 {[%clk 0:00:10]}  Re2 {[%clk 0:00:16]} 62. Bg3 {[%clk 0:00:11]}  Re6 {[%clk 0:00:15]} 63. Rd5 {[%clk 0:00:10]}  Bg7 {[%clk 0:00:15]} 64. Bf2 {[%clk 0:00:08]}  Bh6+ {[%clk 0:00:15]} 65. Kg3 {[%clk 0:00:08]}  Bg5 {[%clk 0:00:15]} 66. Bc5 {[%clk 0:00:08]}  Bf6 {[%clk 0:00:15]} 67. Bb4 {[%clk 0:00:06]}  Re3+ {[%clk 0:00:15]} 68. Kg2 {[%clk 0:00:06]}  Rf3 {[%clk 0:00:15]} 69. Be1 {[%clk 0:00:05]}  h4 {[%clk 0:00:14]} 70. Rd6 {[%clk 0:00:05]}  h3+ {[%clk 0:00:15]} 71. Kg1 {[%clk 0:00:05]}  Kh5 {[%clk 0:00:14]} 72. Rd5+ {[%clk 0:00:06]}  Kg6 {[%clk 0:00:13]} 73. Rd6 {[%clk 0:00:06]}  Rf5 {[%clk 0:00:13]} 74. Bh4 {[%clk 0:00:06]}  Rf3 {[%clk 0:00:12]} 75. Kh2 {[%clk 0:00:05]}  Kf7 {[%clk 0:00:12]} 76. Bxf6 {[%clk 0:00:05]}  Rxf6 {[%clk 0:00:13]} 77. Rd4 {[%clk 0:00:06]}  Rf2+ {[%clk 0:00:11]} 78. Kh1 {[%clk 0:00:03]}  g3 {[%clk 0:00:11]} 79. Rf4+ {[%clk 0:00:03]}  Rxf4 {[%clk 0:00:10]} 80. Kg1 {[%clk 0:00:04]}  h2+ {[%clk 0:00:10]} 81. Kg2 {[%clk 0:00:05]}  Rf2+ {[%clk 0:00:11]} 82. Kxg3 {[%clk 0:00:05]}  h1=Q {[%clk 0:00:10]} 83. Kxf2 {[%clk 0:00:06]}  Qd1 {[%clk 0:00:10]} 84. Kg3 {[%clk 0:00:07]}  Qe2 {[%clk 0:00:11]} 0-1


[Site "https://www.chess.com"]

[Event "Titled Tuesday Blitz June 14 Early 2022"]
[White "Bryakin, Mikhail"]
[Black "Antipov, Mikhail Al."]
[WhiteFideId "4165314"]
[BlackFideId "4107012"]
[WhiteElo "2417"]
[BlackElo "2524"]
[Result "1/2-1/2"]
[Round "03"]
[TimeControl "180+1"]
[Date "2022.06.14"]
[WhiteClock "0:00:06"]
[BlackClock "0:00:07"]

1. e4 {[%clk 0:03:00]}  e5 {[%clk 0:02:58]} 2. Nf3 {[%clk 0:03:00]}  Nc6 {[%clk 0:02:58]} 3. Nc3 {[%clk 0:03:00]}  Nf6 {[%clk 0:02:58]} 4. d4 {[%clk 0:03:01]}  exd4 {[%clk 0:02:58]} 5. Nxd4 {[%clk 0:03:01]}  Bb4 {[%clk 0:02:59]} 6. Nxc6 {[%clk 0:03:01]}  bxc6 {[%clk 0:03:00]} 7. Bd3 {[%clk 0:03:00]}  d5 {[%clk 0:03:00]} 8. exd5 {[%clk 0:02:59]}  cxd5 {[%clk 0:03:01]} 9. O-O {[%clk 0:02:58]}  O-O {[%clk 0:03:01]} 10. h3 {[%clk 0:02:56]}  c6 {[%clk 0:02:57]} 11. Qf3 {[%clk 0:02:54]}  Be6 {[%clk 0:02:43]} 12. Bg5 {[%clk 0:02:50]}  Be7 {[%clk 0:02:43]} 13. Ne2 {[%clk 0:02:46]}  h6 {[%clk 0:02:43]} 14. Bf4 {[%clk 0:02:26]}  c5 {[%clk 0:02:33]} 15. b3 {[%clk 0:02:17]}  c4 {[%clk 0:02:29]} 16. bxc4 {[%clk 0:02:14]}  dxc4 {[%clk 0:02:30]} 17. Be4 {[%clk 0:02:13]}  Nxe4 {[%clk 0:02:30]} 18. Qxe4 {[%clk 0:02:14]}  Bf6 {[%clk 0:02:09]} 19. Be5 {[%clk 0:02:05]}  Bd5 {[%clk 0:02:04]} 20. Bxf6 {[%clk 0:02:01]}  Bxe4 {[%clk 0:02:05]} 21. Bxd8 {[%clk 0:02:01]}  Rfxd8 {[%clk 0:02:06]} 22. c3 {[%clk 0:01:57]}  Rd2 {[%clk 0:01:54]} 23. Nd4 {[%clk 0:01:56]}  Rb8 {[%clk 0:01:54]} 24. Rfd1 {[%clk 0:01:38]}  Rxd1+ {[%clk 0:01:40]} 25. Rxd1 {[%clk 0:01:39]}  Rb2 {[%clk 0:01:40]} 26. Ra1 {[%clk 0:01:39]}  Kf8 {[%clk 0:01:31]} 27. f3 {[%clk 0:01:35]}  Bd3 {[%clk 0:01:18]} 28. a4 {[%clk 0:01:17]}  Rb3 {[%clk 0:01:06]} 29. Nb5 {[%clk 0:01:06]}  a6 {[%clk 0:01:01]} 30. Nc7 {[%clk 0:01:07]}  a5 {[%clk 0:00:43]} 31. Nb5 {[%clk 0:01:07]}  Rb2 {[%clk 0:00:43]} 32. Re1 {[%clk 0:00:47]}  Ra2 {[%clk 0:00:35]} 33. Nd6 {[%clk 0:00:48]}  g5 {[%clk 0:00:32]} 34. Re8+ {[%clk 0:00:45]}  Kg7 {[%clk 0:00:32]} 35. Rc8 {[%clk 0:00:32]}  Rxa4 {[%clk 0:00:30]} 36. Kh2 {[%clk 0:00:30]}  Ra3 {[%clk 0:00:21]} 37. Rc7 {[%clk 0:00:25]}  Rxc3 {[%clk 0:00:20]} 38. Rxf7+ {[%clk 0:00:23]}  Kg6 {[%clk 0:00:20]} 39. g4 {[%clk 0:00:19]}  Rc2+ {[%clk 0:00:17]} 40. Kg3 {[%clk 0:00:20]}  Rd2 {[%clk 0:00:11]} 41. Re7 {[%clk 0:00:14]}  c3 {[%clk 0:00:07]} 42. Ne8 {[%clk 0:00:11]}  h5 {[%clk 0:00:07]} 43. Rg7+ {[%clk 0:00:07]}  Kh6 {[%clk 0:00:07]} 44. h4 {[%clk 0:00:08]}  gxh4+ {[%clk 0:00:07]} 45. Kf4 {[%clk 0:00:07]}  hxg4 {[%clk 0:00:07]} 46. fxg4 {[%clk 0:00:07]}  Rf2+ {[%clk 0:00:06]} 47. Ke3 {[%clk 0:00:07]}  Rf8 {[%clk 0:00:04]} 48. g5+ {[%clk 0:00:06]}  Kh5 {[%clk 0:00:04]} 49. Nf6+ {[%clk 0:00:07]}  Rxf6 {[%clk 0:00:05]} 50. gxf6 {[%clk 0:00:07]}  c2 {[%clk 0:00:06]} 51. Rc7 {[%clk 0:00:08]}  Bg6 {[%clk 0:00:06]} 52. Kd2 {[%clk 0:00:08]}  h3 {[%clk 0:00:07]} 53. f7 {[%clk 0:00:08]}  c1=Q+ {[%clk 0:00:04]} 54. Kxc1 {[%clk 0:00:07]}  h2 {[%clk 0:00:05]} 55. f8=Q {[%clk 0:00:05]}  h1=Q+ {[%clk 0:00:05]} 56. Kb2 {[%clk 0:00:05]}  Qh2+ {[%clk 0:00:05]} 57. Rc2 {[%clk 0:00:06]}  Qe5+ {[%clk 0:00:05]} 58. Rc3 {[%clk 0:00:06]}  Qb5+ {[%clk 0:00:05]} 59. Ka3 {[%clk 0:00:05]}  Qb4+ {[%clk 0:00:03]} 60. Qxb4 {[%clk 0:00:05]}  axb4+ {[%clk 0:00:04]} 61. Kxb4 {[%clk 0:00:06]}  Kg5 {[%clk 0:00:05]} 62. Kc5 {[%clk 0:00:07]}  Bf5 {[%clk 0:00:06]} 63. Kd4 {[%clk 0:00:08]}  Kf4 {[%clk 0:00:06]} 64. Rc1 {[%clk 0:00:06]}  Bg6 {[%clk 0:00:06]} 65. Rf1+ {[%clk 0:00:03]}  Kg5 {[%clk 0:00:06]} 66. Ke5 {[%clk 0:00:04]}  Bd3 {[%clk 0:00:04]} 67. Rg1+ {[%clk 0:00:04]}  Kh5 {[%clk 0:00:05]} 68. Kf6 {[%clk 0:00:04]}  Kh4 {[%clk 0:00:05]} 69. Rg7 {[%clk 0:00:03]}  Be2 {[%clk 0:00:05]} 70. Kf5 {[%clk 0:00:04]}  Bd3+ {[%clk 0:00:05]} 71. Kf4 {[%clk 0:00:04]}  Kh5 {[%clk 0:00:06]} 72. Ke5 {[%clk 0:00:04]}  Bc2 {[%clk 0:00:06]} 73. Kf6 {[%clk 0:00:05]}  Kh4 {[%clk 0:00:07]} 74. Rg5 {[%clk 0:00:05]}  Bd3 {[%clk 0:00:07]} 75. Rg2 {[%clk 0:00:05]}  Be4 {[%clk 0:00:07]} 76. Rg8 {[%clk 0:00:05]}  Bd3 {[%clk 0:00:07]} 77. Ke6 {[%clk 0:00:05]}  Bc4+ {[%clk 0:00:07]} 78. Kf6 {[%clk 0:00:06]}  Bxg8 {[%clk 0:00:07]} 1/2-1/2


[Site "https://www.chess.com"]

[Event "Titled Tuesday Blitz June 14 Early 2022"]
[White "De Silva, L M S T"]
[Black "Daneshvar, Bardiya"]
[WhiteFideId "9953698"]
[BlackFideId "12576468"]
[WhiteElo "1631"]
[BlackElo "2303"]
[Result "0-1"]
[Round "03"]
[TimeControl "180+1"]
[Date "2022.06.14"]
[WhiteClock "0:00:03"]
[BlackClock "0:00:06"]

1. e4 {[%clk 0:03:00]}  Nf6 {[%clk 0:02:59]} 2. e5 {[%clk 0:03:01]}  Nd5 {[%clk 0:02:59]} 3. d4 {[%clk 0:03:02]}  d6 {[%clk 0:03:00]} 4. Nf3 {[%clk 0:03:02]}  g6 {[%clk 0:02:59]} 5. Be2 {[%clk 0:03:01]}  Bg7 {[%clk 0:02:59]} 6. exd6 {[%clk 0:03:02]}  cxd6 {[%clk 0:02:59]} 7. c4 {[%clk 0:03:03]}  Nb6 {[%clk 0:02:59]} 8. h3 {[%clk 0:03:03]}  O-O {[%clk 0:02:58]} 9. O-O {[%clk 0:03:03]}  Nc6 {[%clk 0:02:59]} 10. Nc3 {[%clk 0:03:01]}  Bf5 {[%clk 0:02:58]} 11. b3 {[%clk 0:02:56]}  e5 {[%clk 0:02:55]} 12. dxe5 {[%clk 0:02:56]}  dxe5 {[%clk 0:02:56]} 13. Bb2 {[%clk 0:02:55]}  Qe7 {[%clk 0:02:48]} 14. Qc1 {[%clk 0:02:48]}  Nd4 {[%clk 0:02:45]} 15. Ba3 {[%clk 0:02:45]}  Nxe2+ {[%clk 0:02:35]} 16. Nxe2 {[%clk 0:02:46]}  Qc7 {[%clk 0:02:35]} 17. Bxf8 {[%clk 0:02:44]}  Rxf8 {[%clk 0:02:31]} 18. Ng3 {[%clk 0:02:43]}  e4 {[%clk 0:02:22]} 19. Nxf5 {[%clk 0:02:28]}  gxf5 {[%clk 0:02:19]} 20. Nh4 {[%clk 0:02:24]}  Bxa1 {[%clk 0:02:17]} 21. Qxa1 {[%clk 0:02:25]}  Qf4 {[%clk 0:02:09]} 22. g3 {[%clk 0:02:23]}  Qg5 {[%clk 0:02:02]} 23. Qe5 {[%clk 0:02:21]}  Nd7 {[%clk 0:02:01]} 24. Qxf5 {[%clk 0:02:15]}  Qxf5 {[%clk 0:01:56]} 25. Nxf5 {[%clk 0:02:16]}  Ne5 {[%clk 0:01:57]} 26. Nd6 {[%clk 0:02:15]}  f5 {[%clk 0:01:53]} 27. Nxb7 {[%clk 0:02:13]}  Kf7 {[%clk 0:01:45]} 28. c5 {[%clk 0:02:09]}  Ke6 {[%clk 0:01:37]} 29. Rd1 {[%clk 0:02:09]}  Nd3 {[%clk 0:01:36]} 30. b4 {[%clk 0:01:47]}  Kd5 {[%clk 0:01:11]} 31. a3 {[%clk 0:01:42]}  f4 {[%clk 0:00:53]} 32. gxf4 {[%clk 0:01:02]}  Rxf4 {[%clk 0:00:53]} 33. b5 {[%clk 0:01:00]}  Rf7 {[%clk 0:00:38]} 34. c6 {[%clk 0:00:58]}  Ke5 {[%clk 0:00:34]} 35. a4 {[%clk 0:00:54]}  Nxf2 {[%clk 0:00:16]} 36. Rd7 {[%clk 0:00:53]}  Nxh3+ {[%clk 0:00:16]} 37. Kh2 {[%clk 0:00:52]}  Rf3 {[%clk 0:00:16]} 38. c7 {[%clk 0:00:50]}  Rc3 {[%clk 0:00:16]} 39. Nd6 {[%clk 0:00:39]}  Ke6 {[%clk 0:00:16]} 40. Rd8 {[%clk 0:00:26]}  Rxc7 {[%clk 0:00:15]} 41. Kxh3 {[%clk 0:00:27]}  e3 {[%clk 0:00:15]} 42. Kg3 {[%clk 0:00:21]}  Ke7 {[%clk 0:00:09]} 43. Re8+ {[%clk 0:00:04]}  Kxd6 {[%clk 0:00:09]} 44. Rxe3 {[%clk 0:00:05]}  Rc4 {[%clk 0:00:09]} 45. Rf3 {[%clk 0:00:05]}  Rxa4 {[%clk 0:00:09]} 46. Rf7 {[%clk 0:00:06]}  h5 {[%clk 0:00:08]} 47. Rh7 {[%clk 0:00:06]}  h4+ {[%clk 0:00:08]} 48. Kh3 {[%clk 0:00:06]}  Kc5 {[%clk 0:00:08]} 49. Rh5+ {[%clk 0:00:06]}  Kb6 {[%clk 0:00:08]} 50. Rg5 {[%clk 0:00:05]}  Rb4 {[%clk 0:00:08]} 51. Rf5 {[%clk 0:00:05]}  Rxb5 {[%clk 0:00:06]} 52. Rf6+ {[%clk 0:00:05]}  Ka5 {[%clk 0:00:06]} 53. Kxh4 {[%clk 0:00:06]}  Re5 {[%clk 0:00:06]} 54. Kg3 {[%clk 0:00:06]}  Kb5 {[%clk 0:00:06]} 55. Rf8 {[%clk 0:00:07]}  a5 {[%clk 0:00:05]} 56. Rb8+ {[%clk 0:00:08]}  Kc4 {[%clk 0:00:04]} 57. Kf4 {[%clk 0:00:08]}  Re7 {[%clk 0:00:04]} 58. Ra8 {[%clk 0:00:07]}  Kb4 {[%clk 0:00:04]} 59. Rb8+ {[%clk 0:00:07]}  Ka3 {[%clk 0:00:04]} 60. Ra8 {[%clk 0:00:08]}  a4 {[%clk 0:00:05]} 61. Rb8 {[%clk 0:00:09]}  Ka2 {[%clk 0:00:05]} 62. Ra8 {[%clk 0:00:09]}  a3 {[%clk 0:00:04]} 63. Rb8 {[%clk 0:00:10]}  Ka1 {[%clk 0:00:04]} 64. Rb3 {[%clk 0:00:10]}  a2 {[%clk 0:00:04]} 65. Rb8 {[%clk 0:00:10]}  Re1 {[%clk 0:00:04]} 66. Kg5 {[%clk 0:00:06]}  Rb1 {[%clk 0:00:04]} 67. Rf8 {[%clk 0:00:06]}  Rb5+ {[%clk 0:00:04]} 68. Kg6 {[%clk 0:00:06]}  Kb2 {[%clk 0:00:04]} 69. Kg7 {[%clk 0:00:06]}  a1=Q {[%clk 0:00:04]} 70. Rf6 {[%clk 0:00:05]}  Kb3 {[%clk 0:00:04]} 71. Kf7 {[%clk 0:00:05]}  Qc3 {[%clk 0:00:05]} 72. Ke7 {[%clk 0:00:03]}  Rb7+ {[%clk 0:00:06]} 73. Kf8 {[%clk 0:00:03]}  Qxf6+ {[%clk 0:00:06]} 0-1


[Site "https://www.chess.com"]

[Event "Titled Tuesday Blitz June 14 Early 2022"]
[White "Durarbayli, Vasif"]
[Black "Karolczuk, Iwo"]
[WhiteFideId "13402935"]
[BlackFideId "21816972"]
[WhiteElo "2528"]
[BlackElo "2281"]
[Result "1/2-1/2"]
[Round "03"]
[TimeControl "180+1"]
[Date "2022.06.14"]
[WhiteClock "0:00:10"]
[BlackClock "0:00:10"]

1. e4 {[%clk 0:03:00]}  c5 {[%clk 0:02:59]} 2. Nf3 {[%clk 0:02:59]}  d6 {[%clk 0:02:59]} 3. Bb5+ {[%clk 0:02:59]}  Nd7 {[%clk 0:02:58]} 4. O-O {[%clk 0:02:59]}  a6 {[%clk 0:02:56]} 5. Bd3 {[%clk 0:02:59]}  Ngf6 {[%clk 0:02:55]} 6. Re1 {[%clk 0:03:00]}  e6 {[%clk 0:02:55]} 7. Bf1 {[%clk 0:03:00]}  Be7 {[%clk 0:02:46]} 8. c4 {[%clk 0:02:59]}  Ne5 {[%clk 0:02:42]} 9. d4 {[%clk 0:02:54]}  Nxf3+ {[%clk 0:02:40]} 10. gxf3 {[%clk 0:02:55]}  Nd7 {[%clk 0:02:31]} 11. d5 {[%clk 0:02:47]}  e5 {[%clk 0:02:29]} 12. f4 {[%clk 0:02:47]}  O-O {[%clk 0:02:17]} 13. Nc3 {[%clk 0:02:39]}  Bf6 {[%clk 0:02:08]} 14. fxe5 {[%clk 0:02:29]}  Bxe5 {[%clk 0:01:57]} 15. f4 {[%clk 0:02:25]}  Bd4+ {[%clk 0:01:56]} 16. Be3 {[%clk 0:02:25]}  Qh4 {[%clk 0:01:43]} 17. Bxd4 {[%clk 0:01:58]}  cxd4 {[%clk 0:01:41]} 18. Ne2 {[%clk 0:01:59]}  f5 {[%clk 0:00:48]} 19. exf5 {[%clk 0:01:12]}  Rxf5 {[%clk 0:00:35]} 20. Qxd4 {[%clk 0:01:11]}  Rh5 {[%clk 0:00:21]} 21. Qf2 {[%clk 0:01:09]}  Qxf2+ {[%clk 0:00:17]} 22. Kxf2 {[%clk 0:01:10]}  Rxh2+ {[%clk 0:00:18]} 23. Kg3 {[%clk 0:01:08]}  Rh6 {[%clk 0:00:18]} 24. Nd4 {[%clk 0:00:58]}  Nf6 {[%clk 0:00:17]} 25. Re7 {[%clk 0:00:58]}  Rg6+ {[%clk 0:00:17]} 26. Kf2 {[%clk 0:00:52]}  Bd7 {[%clk 0:00:14]} 27. Bd3 {[%clk 0:00:46]}  Rh6 {[%clk 0:00:12]} 28. Rg1 {[%clk 0:00:46]}  g6 {[%clk 0:00:08]} 29. f5 {[%clk 0:00:43]}  Kf8 {[%clk 0:00:07]} 30. Re2 {[%clk 0:00:31]}  Kf7 {[%clk 0:00:07]} 31. fxg6+ {[%clk 0:00:26]}  hxg6 {[%clk 0:00:08]} 32. Ke1 {[%clk 0:00:27]}  Re8 {[%clk 0:00:08]} 33. Rxe8 {[%clk 0:00:23]}  Nxe8 {[%clk 0:00:07]} 34. Nf3 {[%clk 0:00:20]}  Nf6 {[%clk 0:00:06]} 35. Ng5+ {[%clk 0:00:20]}  Ke7 {[%clk 0:00:07]} 36. Kd2 {[%clk 0:00:20]}  Rh2+ {[%clk 0:00:06]} 37. Kc3 {[%clk 0:00:20]}  Bf5 {[%clk 0:00:07]} 38. Bxf5 {[%clk 0:00:17]}  gxf5 {[%clk 0:00:08]} 39. Ne6 {[%clk 0:00:18]}  Ne4+ {[%clk 0:00:07]} 40. Kd4 {[%clk 0:00:17]}  Rd2+ {[%clk 0:00:07]} 41. Ke3 {[%clk 0:00:17]}  Rxb2 {[%clk 0:00:07]} 42. Rg8 {[%clk 0:00:14]}  Kf6 {[%clk 0:00:06]} 43. Nd4 {[%clk 0:00:08]}  Rxa2 {[%clk 0:00:05]} 44. Rf8+ {[%clk 0:00:08]}  Kg6 {[%clk 0:00:06]} 45. Nxf5 {[%clk 0:00:07]}  Nc5 {[%clk 0:00:06]} 46. Nxd6 {[%clk 0:00:07]}  b5 {[%clk 0:00:05]} 47. Kd4 {[%clk 0:00:07]}  Nb3+ {[%clk 0:00:05]} 48. Kc3 {[%clk 0:00:07]}  bxc4 {[%clk 0:00:06]} 49. Nxc4 {[%clk 0:00:07]}  Na5 {[%clk 0:00:06]} 50. Nxa5 {[%clk 0:00:05]}  Rxa5 {[%clk 0:00:07]} 51. Kc4 {[%clk 0:00:06]}  Ra4+ {[%clk 0:00:07]} 52. Kc5 {[%clk 0:00:06]}  Kg7 {[%clk 0:00:08]} 53. Ra8 {[%clk 0:00:06]}  Kf7 {[%clk 0:00:07]} 54. d6 {[%clk 0:00:07]}  Ke6 {[%clk 0:00:07]} 55. Re8+ {[%clk 0:00:07]}  Kd7 {[%clk 0:00:08]} 56. Re7+ {[%clk 0:00:08]}  Kd8 {[%clk 0:00:08]} 57. Ra7 {[%clk 0:00:06]}  Ra1 {[%clk 0:00:08]} 58. Kc6 {[%clk 0:00:06]}  Rc1+ {[%clk 0:00:08]} 59. Kd5 {[%clk 0:00:07]}  Rd1+ {[%clk 0:00:09]} 60. Kc6 {[%clk 0:00:08]}  Rc1+ {[%clk 0:00:09]} 61. Kd5 {[%clk 0:00:09]}  Rd1+ {[%clk 0:00:09]} 62. Kc6 {[%clk 0:00:10]}  Rc1+ {[%clk 0:00:10]} 1/2-1/2


[Site "https://www.chess.com"]

[Event "Titled Tuesday Blitz June 14 Early 2022"]
[White "Gokerkan, Cem Kaan"]
[Black "Sadhwani, Raunak"]
[WhiteFideId "6336760"]
[BlackFideId "35093487"]
[WhiteElo "2382"]
[BlackElo "2616"]
[Result "0-1"]
[Round "03"]
[TimeControl "180+1"]
[Date "2022.06.14"]
[WhiteClock "0:00:10"]
[BlackClock "0:00:28"]

1. e4 {[%clk 0:03:00]}  e5 {[%clk 0:03:00]} 2. Nf3 {[%clk 0:03:01]}  Nc6 {[%clk 0:03:01]} 3. Bc4 {[%clk 0:03:02]}  d6 {[%clk 0:03:01]} 4. d4 {[%clk 0:03:02]}  exd4 {[%clk 0:03:02]} 5. Nxd4 {[%clk 0:03:03]}  Nf6 {[%clk 0:03:02]} 6. Nc3 {[%clk 0:03:03]}  Be7 {[%clk 0:03:03]} 7. O-O {[%clk 0:03:03]}  O-O {[%clk 0:03:03]} 8. Re1 {[%clk 0:03:04]}  Re8 {[%clk 0:03:03]} 9. h3 {[%clk 0:02:56]}  Nxd4 {[%clk 0:03:02]} 10. Qxd4 {[%clk 0:02:55]}  Nd7 {[%clk 0:03:02]} 11. Nd5 {[%clk 0:02:53]}  Bh4 {[%clk 0:02:59]} 12. g3 {[%clk 0:02:37]}  Ne5 {[%clk 0:02:58]} 13. Kg2 {[%clk 0:02:30]}  c6 {[%clk 0:02:51]} 14. Ne3 {[%clk 0:02:20]}  Bf6 {[%clk 0:02:38]} 15. Qd1 {[%clk 0:02:14]}  d5 {[%clk 0:02:12]} 16. exd5 {[%clk 0:02:08]}  Nxc4 {[%clk 0:02:12]} 17. Nxc4 {[%clk 0:02:05]}  Rxe1 {[%clk 0:02:13]} 18. Qxe1 {[%clk 0:02:05]}  Qxd5+ {[%clk 0:02:13]} 19. Kh2 {[%clk 0:02:01]}  Bxh3 {[%clk 0:02:09]} 20. Kxh3 {[%clk 0:02:00]}  Qxc4 {[%clk 0:02:10]} 21. c3 {[%clk 0:01:54]}  h5 {[%clk 0:02:10]} 22. Bf4 {[%clk 0:01:53]}  Rd8 {[%clk 0:01:56]} 23. Qe3 {[%clk 0:01:29]}  Rd3 {[%clk 0:01:33]} 24. Qe8+ {[%clk 0:01:21]}  Kh7 {[%clk 0:01:33]} 25. Kg2 {[%clk 0:01:08]}  Qd5+ {[%clk 0:01:28]} 26. Kg1 {[%clk 0:00:55]}  h4 {[%clk 0:01:26]} 27. Re1 {[%clk 0:00:54]}  Rd1 {[%clk 0:01:08]} 28. Rxd1 {[%clk 0:00:49]}  Qxd1+ {[%clk 0:01:08]} 29. Kh2 {[%clk 0:00:50]}  hxg3+ {[%clk 0:01:05]} 30. Bxg3 {[%clk 0:00:50]}  Qh5+ {[%clk 0:01:05]} 31. Kg1 {[%clk 0:00:50]}  Qd1+ {[%clk 0:01:04]} 32. Kh2 {[%clk 0:00:51]}  Qd5 {[%clk 0:01:04]} 33. a4 {[%clk 0:00:38]}  Qb3 {[%clk 0:00:46]} 34. Qd7 {[%clk 0:00:34]}  g6 {[%clk 0:00:41]} 35. a5 {[%clk 0:00:31]}  a6 {[%clk 0:00:41]} 36. Bf4 {[%clk 0:00:26]}  Kg7 {[%clk 0:00:40]} 37. Bd6 {[%clk 0:00:24]}  Qxb2 {[%clk 0:00:35]} 38. Qe8 {[%clk 0:00:20]}  Qxf2+ {[%clk 0:00:34]} 39. Kh1 {[%clk 0:00:18]}  Qf3+ {[%clk 0:00:34]} 40. Kh2 {[%clk 0:00:14]}  Qh5+ {[%clk 0:00:29]} 41. Kg1 {[%clk 0:00:15]}  Qg5+ {[%clk 0:00:28]} 42. Kh1 {[%clk 0:00:10]}  Qd5+ {[%clk 0:00:28]} 0-1


[Site "https://www.chess.com"]

[Event "Titled Tuesday Blitz June 14 Early 2022"]
[White "Hesham, Abdelrahman"]
[Black "Shirov, Alexei"]
[WhiteFideId "10600183"]
[BlackFideId "2209390"]
[WhiteElo "2506"]
[BlackElo "2678"]
[Result "0-1"]
[Round "03"]
[TimeControl "180+1"]
[Date "2022.06.14"]
[WhiteClock "0:01:00"]
[BlackClock "0:01:50"]

1. d4 {[%clk 0:02:59]}  d5 {[%clk 0:03:00]} 2. Bf4 {[%clk 0:02:59]}  Nf6 {[%clk 0:02:57]} 3. e3 {[%clk 0:02:59]}  c5 {[%clk 0:02:57]} 4. Nf3 {[%clk 0:02:58]}  Nc6 {[%clk 0:02:56]} 5. Nbd2 {[%clk 0:02:58]}  Qb6 {[%clk 0:02:56]} 6. dxc5 {[%clk 0:02:57]}  Qxb2 {[%clk 0:02:55]} 7. Rb1 {[%clk 0:02:55]}  Qc3 {[%clk 0:02:54]} 8. Bb5 {[%clk 0:02:55]}  g6 {[%clk 0:02:50]} 9. O-O {[%clk 0:02:52]}  Bg7 {[%clk 0:02:48]} 10. Be5 {[%clk 0:02:06]}  Qxc5 {[%clk 0:02:42]} 11. c4 {[%clk 0:02:06]}  O-O {[%clk 0:02:38]} 12. Nb3 {[%clk 0:02:06]}  Qb6 {[%clk 0:02:12]} 13. Ba1 {[%clk 0:01:40]}  dxc4 {[%clk 0:02:07]} 14. Bxc4 {[%clk 0:01:41]}  Qc7 {[%clk 0:02:07]} 15. Rc1 {[%clk 0:01:37]}  Bg4 {[%clk 0:02:03]} 16. h3 {[%clk 0:01:37]}  Bxf3 {[%clk 0:01:57]} 17. Qxf3 {[%clk 0:01:24]}  Rac8 {[%clk 0:01:56]} 18. Nd4 {[%clk 0:01:00]}  Ne5 {[%clk 0:01:50]} 0-1


[Site "https://www.chess.com"]